fUST/lending_fUST_20251218
["ID","MTS","AMOUNT","RATE_DAILY","PERIOD"]
[398993599,1766051227774,733.28027208,0.00013821,2]
[398993600,1766051227795,266.71972792,0.00013821,2]
[398993601,1766051227985,5000.0,0.00015,2]
[398993602,1766051234663,500.0,0.00013699,2]
[398993603,1766051240899,150.0,6.801e-05,2]
[398993604,1766051241313,150.0,7.125e-05,2]
[398993605,1766051241571,500.0,0.00013699,2]
[398993606,1766051241691,500.0,0.00013699,2]
[398993607,1766051241725,150.0,7.449e-05,2]
[398993608,1766051242130,150.0,7.773e-05,2]
[398993609,1766051242575,150.0,8.097e-05,2]
[398993610,1766051242983,150.0,8.42e-05,2]
[398993611,1766051243384,150.0,8.744e-05,2]
[398993612,1766051243778,150.0,9.068e-05,2]
[398993613,1766051244189,158.35,9.392e-05,2]
[398993614,1766051244476,500.0,0.00013699,2]
[398993615,1766051294100,510.88194934,0.00013699,2]
[398993616,1766051326252,864.05832274,0.00015,2]
[398993617,1766051326277,4135.94167726,0.00015,2]
[398993618,1766051343636,500.0,0.00013699,2]
[398993619,1766051343690,501.27079192,0.00014247,2]
[398993620,1766051345433,500.0,0.00013273,2]
[398993621,1766051345460,500.0,0.00013699,2]
[398993622,1766051345486,1000.0,0.00013821,2]
[398993623,1766051345518,1000.0,0.00014247,2]
[398993624,1766051345544,1500.0,0.00014368,2]
[398993625,1766051345569,362.79753082,0.00014795,2]
[398993626,1766051345590,1137.20246918,0.00014795,2]
[398993627,1766051345616,572.61273624,0.00014916,2]
[398993628,1766051345665,500.0,0.00013699,2]
[398993629,1766051345728,1000.0,0.00014247,2]
[398993630,1766051345777,1500.0,0.00014795,2]
[398993631,1766051373067,150.0,6.796e-05,2]
[398993632,1766051373488,150.0,7.12e-05,2]
[398993633,1766051373887,150.0,7.443e-05,2]
[398993634,1766051374293,150.0,7.767e-05,2]
[398993635,1766051374743,150.0,8.091e-05,2]
[398993636,1766051375148,173.82,8.414e-05,2]
[398993637,1766051375557,202.79,8.738e-05,2]
[398993638,1766051376453,231.76,9.062e-05,2]
[398993639,1766051376971,260.73,9.385e-05,2]
[398993640,1766051377355,289.7,9.709e-05,2]
[398993678,1766051432544,-321.0,0.00015189,2]
[398993715,1766051438555,-1733.72171815,0.00015189,2]
[398993716,1766051438567,-2945.27828185,0.00015189,2]
[398993717,1766051438576,-254.55346558,0.00015189,2]
[398993718,1766051438588,-384.44653442,0.00015189,2]
[398993719,1766051438597,-150.0,0.00015265,2]
[398993720,1766051438607,-1200.0,0.00015341,2]
[398993721,1766051438616,-500.0,0.00015342,2]
[398993722,1766051438626,-500.0,0.00015342,2]
[398993723,1766051438636,-500.0,0.00015342,2]
[398993724,1766051438645,-300.0,0.0001651,2]
[398993725,1766051438655,-300.0,0.0001651,2]
[398993726,1766051438665,-300.0,0.0001651,2]
[398993727,1766051438675,-1763.7139324,0.00016511,2]
[398993728,1766051438684,-665.7069978,0.00016511,2]
[398993729,1766051438693,-792.0,0.00016869,2]
[398993730,1766051438703,-177.0,0.00017265,2]
[398993731,1766051438713,-420.0,0.00018042,2]
[398993732,1766051438722,-300.0,0.00018042,2]
[398993733,1766051438732,-745.67346181,0.0001822,2]
[398993734,1766051438741,-665.7069978,0.00018477,2]
[398993735,1766051438750,-2006.43048929,0.00018647,2]
[398993736,1766051438759,-1763.7139324,0.0001867,2]
[398993737,1766051438768,-611.89044606,0.00019021,2]
[398993738,1766051438777,-204.0,0.00019265,2]
[398993739,1766051438785,-3021.51657799,0.00019291,2]
[398993746,1766051440695,-32676.64445898,0.00019291,2]
[398993754,1766051443224,150.0,6.819e-05,2]
[398993767,1766051443666,-5908.37634892,0.00019291,2]
[398993768,1766051443769,150.0,7.144e-05,2]
[398993769,1766051443782,-300.0,0.00019291,2]
[398993770,1766051443795,-1776.9944682,0.00019291,2]
[398993772,1766051447731,-500.0,0.0001929,2]
[398993773,1766051447743,-234.72091311,0.0001929,2]
[398993774,1766051447755,-186.60017649,0.0001929,2]
[398993775,1766051447767,-500.0,0.0001929,2]
[398993776,1766051447777,-500.0,0.0001929,2]
[398993777,1766051447788,-500.0,0.0001929,2]
[398993778,1766051447799,-500.0,0.0001929,2]
[398993779,1766051447810,-500.0,0.0001929,2]
[398993780,1766051447822,-500.0,0.0001929,2]
[398993781,1766051447833,-500.0,0.0001929,2]
[398993782,1766051447843,-267.95094397,0.0001929,2]
[398993783,1766051464172,500.0,0.00013699,2]
[398993784,1766051464251,500.0,0.00014247,2]
[398993785,1766051507724,150.0,6.644e-05,2]
[398993786,1766051508129,150.0,6.961e-05,2]
[398993787,1766051526365,500.0,0.00013273,2]
[398993788,1766051526399,1000.0,0.00013821,2]
[398993789,1766051526456,1005.76775588,0.00014368,2]
[398993790,1766051526704,500.0,0.00013273,2]
[398993791,1766051526759,1000.0,0.00013821,2]
[398993792,1766051526817,500.0,0.00014368,2]
[398993793,1766051572957,150.0,6.617e-05,2]
[398993794,1766051573396,150.0,6.932e-05,2]
[398993795,1766051573814,150.0,7.248e-05,2]
[398993796,1766051574270,150.0,7.563e-05,2]
[398993797,1766051574668,150.0,7.878e-05,2]
[398993798,1766051575080,150.0,8.193e-05,2]
[398993799,1766051643097,1000.0,0.00014247,2]
[398993800,1766051643150,1500.0,0.00014795,2]
[398993801,1766051643206,500.0,0.00013699,2]
[398993802,1766051645129,500.0,0.00013699,2]
[398993803,1766051645188,502.56765628,0.00014247,2]
[398993804,1766051645484,500.0,0.00013699,2]
[398993805,1766051645514,91.67458784,0.00014247,2]
[398993806,1766051645535,409.49592227,0.00014247,2]
[398993807,1766051703114,1000.0,0.00013821,2]
[398993808,1766051703163,500.0,0.00014368,2]
[398993809,1766051703260,500.0,0.00013273,2]
[398993810,1766051704151,150.0,6.676e-05,2]
[398993814,1766051768041,150.0,6.608e-05,2]
[398993815,1766051768448,150.0,6.923e-05,2]
[398993816,1766051768902,150.0,7.237e-05,2]
[398993817,1766051865435,5000.0,0.00015,2]
[398993818,1766051889153,1990.51407773,0.00015,2]
[398993819,1766051889178,1324.08359892,0.00015,2]
[398993820,1766052215078,-286.84122963,0.00015266,2]
[398993821,1766052215108,-150.0,0.00015266,2]
[398993822,1766052215133,-640.0,0.00015266,2]
[398993823,1766052215158,-443.8999701,0.00015342,2]
[398993824,1766052215184,-735.7672099,0.0001659,2]
[398993825,1766052228898,-177.0,0.00017266,2]
[398993826,1766052228924,-1239.48472228,0.00017492,2]
[398993827,1766052228950,-1342.21223126,0.00017507,2]
[398993828,1766052228974,-193.64764381,0.00017805,2]
[398993829,1766052238891,-163.77565631,0.0001829,5]
[398993830,1766052238919,-300.0,0.00018594,2]
[398993831,1766052238945,-257.0,0.00018594,2]
[398993832,1766052238975,-172.2080565,0.00018595,2]
[398993833,1766052239002,-3360.1365182,0.00018595,2]
[398993834,1766052239028,-417.79107907,0.0001874,2]
[398993835,1766052239055,-213.96381185,0.00018905,2]
[398993836,1766052246343,-204.0,0.00019266,2]
[398993837,1766052246382,-1200.0,0.00019285,2]
[398993838,1766052246409,-151.0,0.00019286,2]
[398993839,1766052246435,-200.031408,0.00019286,2]
[398993840,1766052246461,-151.0,0.00019287,2]
[398993841,1766052246486,-151.0,0.00019287,2]
[398993842,1766052246512,-300.0,0.0001929,2]
[398993843,1766052246531,-204.0,0.00019291,2]
[398993844,1766052246545,-1200.0,0.00019291,2]
[398993845,1766052246556,-151.0,0.00019291,2]
[398993846,1766052246567,-200.031408,0.00019291,2]
[398993847,1766052246579,-151.0,0.00019291,2]
[398993848,1766052246593,-151.0,0.00019291,2]
[398993849,1766052246604,-300.0,0.00019291,2]
[398993850,1766052246615,-5166.48092618,0.00019291,2]
[399001563,1766052631700,-289.8918828,0.00019038,2]
[399001565,1766052631712,-256.86585159,0.00019038,2]
[399001566,1766052631752,-75.98764731,0.00019038,2]
[399001568,1766052631762,-704.0,0.00019038,2]
[399001569,1766052631770,-94.65053676,0.00019291,2]
[399001570,1766052631781,-310.21679657,0.00019291,2]
[399001705,1766052637835,-781.84131774,0.00019291,2]
[399001706,1766052637846,-206.22872636,0.00019291,2]
[399001707,1766052637855,-910.22386628,0.00019317,2]
[399001815,1766052642798,-272.83182917,0.00019317,2]
[399001816,1766052642809,-472.42052683,0.00019317,2]
[399001817,1766052642819,-200.2010681,0.00019455,2]
[399001818,1766052642828,-196.50688876,0.0001973,3]
[399001820,1766052642837,-1113.68836944,0.0002061,2]
[399001821,1766052642846,-348.56575887,0.00020658,2]
[399001822,1766052642855,-255.58372968,0.000209,2]
[399001823,1766052642864,-276.42356411,0.00021,2]
[399001824,1766052642873,-289.8918828,0.00021131,2]
[399001826,1766052642882,-332.8534989,0.00021131,2]
[399001827,1766052642892,-167.2913465,0.00021481,2]
[399001828,1766052642904,-180.0,0.00021499,2]
[399001829,1766052642913,-1036.42850655,0.000215,2]
[399001830,1766052642922,-1040.14494645,0.000215,2]
[399001832,1766052642935,-77.54069687,0.000215,2]
[399001837,1766052643119,-181.54561599,0.00021856,2]
[399001838,1766052643128,-150.63499851,0.00021918,2]
[399001839,1766052643138,-3971.81791908,0.00022178,2]
[399001845,1766052643227,-8062.06175512,0.00022178,2]
[399001848,1766052643236,-289.8918828,0.00023224,2]
[399001849,1766052643245,-332.8534989,0.00023224,2]
[399001850,1766052643254,-222.37119668,0.0002366,2]
[399001851,1766052643264,-289.8918828,0.00025317,2]
[399001852,1766052643272,-332.8534989,0.00025317,2]
[399001854,1766052643281,-481.09106671,0.00026508,2]
[399001855,1766052643291,-414.8008,0.00027304,2]
[399001856,1766052643300,-414.46863256,0.00027304,2]
[399001857,1766052643308,-746.04353861,0.00027304,2]
[399001858,1766052643317,-567.7165872,0.0002739,7]
[399001859,1766052643326,-151.0,0.00027397,7]
[399001861,1766052643335,-161.563786,0.00027397,2]
[399001862,1766052643344,-164.101137,0.00027397,7]
[399001863,1766052643353,-164.101137,0.00027397,7]
[399001864,1766052643361,-164.101137,0.00027397,7]
[399001866,1766052643370,-164.101137,0.00027397,7]
[399001867,1766052643379,-164.101137,0.00027397,7]
[399001868,1766052643388,-164.101137,0.00027397,7]
[399001869,1766052643397,-164.101137,0.00027397,7]
[399001870,1766052643406,-164.101137,0.00027397,7]
[399001872,1766052643415,-164.101137,0.00027397,7]
[399001873,1766052643424,-164.101137,0.00027397,7]
[399001874,1766052643432,-164.101137,0.00027397,7]
[399001875,1766052643443,-164.101137,0.00027397,7]
[399001877,1766052643452,-164.101137,0.00027397,7]
[399001878,1766052643462,-164.101137,0.00027397,7]
[399001879,1766052643470,-164.101137,0.00027397,7]
[399001880,1766052643479,-164.101137,0.00027397,7]
[399001881,1766052643489,-164.101137,0.00027397,7]
[399001883,1766052643499,-164.101137,0.00027397,7]
[399001884,1766052643509,-164.101137,0.00027397,7]
[399001885,1766052643518,-164.101145,0.00027397,7]
[399001886,1766052643527,-1041.66666667,0.0002848,2]
[399001887,1766052643535,-483.0143067,0.000285,7]
[399001889,1766052643544,-239.99930032,0.00028741,2]
[399001890,1766052643553,-171.99582082,0.000288,7]
[399001891,1766052643562,-508.66532266,0.00029,7]
[399001892,1766052643571,-952.44016589,0.000296,2]
[399001893,1766052643580,-500.0,0.00029699,2]
[399001895,1766052643589,-500.0,0.00029699,2]
[399001896,1766052643599,-500.0,0.00029699,2]
[399001897,1766052643608,-500.0,0.00029699,2]
[399001898,1766052643617,-500.0,0.00029699,2]
[399001900,1766052643627,-500.0,0.00029699,2]
[399001901,1766052643636,-500.0,0.00029699,2]
[399001902,1766052643645,-500.0,0.00029699,2]
[399001903,1766052643654,-94.95228055,0.00029699,2]
[399001904,1766052643666,-297.83566657,0.00029699,2]
[399001985,1766052645949,-107.21205288,0.00029699,2]
[399001986,1766052645958,-416.58190766,0.00029699,2]
[399001987,1766052645968,-500.0,0.00029699,2]
[399001988,1766052645978,-413.39992376,0.00029699,2]
[399001993,1766052646159,-86.60007624,0.00029699,2]
[399001994,1766052646168,-500.0,0.00029699,2]
[399001996,1766052646177,-500.0,0.00029699,2]
[399001997,1766052646186,-325.35349565,0.00029699,2]
[399002002,1766052646387,-174.64650435,0.00029699,2]
[399002004,1766052646397,-367.42680777,0.00029699,2]
[399002005,1766052646406,-500.0,0.00029699,2]
[399002006,1766052646416,-500.0,0.00029699,2]
[399002007,1766052646425,-407.24765547,0.00029699,2]
[399002008,1766052646434,-500.0,0.00029699,2]
[399002010,1766052646443,-500.0,0.00029699,2]
[399002011,1766052646452,-500.0,0.00029699,2]
[399002012,1766052646462,-500.0,0.00029699,2]
[399002013,1766052646470,-500.0,0.00029699,2]
[399002015,1766052646479,-500.0,0.00029699,2]
[399002016,1766052646488,-500.0,0.00029699,2]
[399002017,1766052646498,-500.0,0.00029699,2]
[399002018,1766052646506,-500.0,0.00029699,2]
[399002019,1766052646515,-500.0,0.00029699,2]
[399002021,1766052646525,-500.0,0.00029699,2]
[399002022,1766052646534,-500.0,0.00029699,2]
[399002023,1766052646543,-500.0,0.00029699,2]
[399002024,1766052646551,-500.0,0.00029699,2]
[399002026,1766052646560,-500.0,0.00029699,2]
[399002027,1766052646569,-500.0,0.00029699,2]
[399002028,1766052646579,-143.67996826,0.00029699,2]
[399002029,1766052646590,-356.32003174,0.00029699,2]
[399002031,1766052646599,-500.0,0.00029699,2]
[399002032,1766052646608,-500.0,0.00029699,2]
[399002033,1766052646617,-500.0,0.00029699,2]
[399002034,1766052646626,-500.0,0.00029699,2]
[399002035,1766052646635,-500.0,0.00029699,2]
[399002037,1766052646644,-500.0,0.00029699,2]
[399002038,1766052646653,-500.0,0.00029699,2]
[399002039,1766052646662,-500.0,0.00029699,2]
[399002040,1766052646671,-500.0,0.00029699,2]
[399002042,1766052646680,-500.0,0.00029699,2]
[399002043,1766052646690,-500.0,0.00029699,2]
[399002044,1766052646699,-500.0,0.00029699,2]
[399002045,1766052646708,-500.0,0.00029699,2]
[399002046,1766052646719,-500.0,0.00029699,2]
[399002048,1766052646728,-500.0,0.00029699,2]
[399002049,1766052646738,-500.0,0.00029699,2]
[399002050,1766052646748,-500.0,0.00029699,2]
[399002051,1766052646758,-500.0,0.00029699,2]
[399002053,1766052646767,-500.0,0.00029699,2]
[399002054,1766052646776,-500.0,0.00029699,2]
[399002055,1766052646785,-500.0,0.00029699,2]
[399002056,1766052646794,-500.0,0.00029699,2]
[399002057,1766052646804,-500.0,0.00029699,2]
[399002059,1766052646813,-500.0,0.00029699,2]
[399002060,1766052646822,-500.0,0.00029699,2]
[399002061,1766052646832,-500.0,0.00029699,2]
[399002062,1766052646841,-500.0,0.00029699,2]
[399002064,1766052646850,-500.0,0.00029699,2]
[399002065,1766052646860,-500.0,0.00029699,2]
[399002066,1766052646870,-500.0,0.00029699,2]
[399002067,1766052646879,-500.0,0.00029699,2]
[399002068,1766052646889,-500.0,0.00029699,2]
[399002070,1766052646901,-38.93761697,0.00029699,2]
[399002540,1766052669252,150.0,6.988e-05,2]
[399002541,1766052669682,150.0,7.321e-05,2]
[399002601,1766052734531,150.0,7.453e-05,2]
[399002602,1766052734930,150.0,7.808e-05,2]
[399002603,1766052799375,150.0,7.386e-05,2]
[399002604,1766052799801,150.0,7.737e-05,2]
[399002605,1766052800180,150.0,8.089e-05,2]
[399002606,1766052800579,150.0,8.441e-05,2]
[399002607,1766052800999,150.0,8.792e-05,2]
[399002608,1766052801406,150.0,9.144e-05,2]
[399002609,1766052801857,150.0,9.496e-05,2]
[399002610,1766052802226,150.0,9.847e-05,2]
[399002611,1766053098993,161.563786,0.00013699,2]
[399002612,1766053380814,214.0,0.00015,5]
[399002613,1766053688486,153.5,0.00015,2]
[399002614,1766053700660,150.0,6.997e-05,2]
[399002615,1766053701094,150.0,7.33e-05,2]
[399002616,1766053701513,150.0,7.664e-05,2]
[399002617,1766053766460,150.0,8.214e-05,2]
[399002618,1766053767356,150.0,8.605e-05,2]
[399002619,1766053767800,150.0,8.997e-05,2]
[399002620,1766053768204,150.0,9.388e-05,2]
[399002639,1766053831814,-307.37279329,0.00023952,3]
[399002640,1766053831824,-150.0,0.00024658,2]
[399002641,1766053831835,-785.24152748,0.00028781,2]
[399002642,1766053831844,-419.08194204,0.00029493,2]
[399002643,1766053831868,-126.49530925,0.00029493,2]
[399002644,1766053831878,-1041.66666667,0.00029595,2]
[399002645,1766053831886,-833.38514518,0.00029622,2]
[399002646,1766053831898,-402.0202132,0.00029699,2]
[399002647,1766053831909,-233.27399491,0.00029699,2]
[399002648,1766053831919,-419.47329764,0.00029699,2]
[399002649,1766053831929,-3000.0,0.000297,2]
[399002650,1766053831938,-250.0,0.00029708,2]
[399002651,1766053831947,-250.0,0.00029708,2]
[399002652,1766053831956,-250.0,0.00029708,2]
[399002654,1766053831965,-3000.0,0.0002971,2]
[399002656,1766053831975,-3000.0,0.0002972,2]
[399002658,1766053831984,-313.701,0.0002972,23]
[399002659,1766053831993,-489.69418394,0.0002972,2]
[399002660,1766053832001,-500.0,0.0002972,2]
[399002661,1766053832010,-500.0,0.0002972,2]
[399002662,1766053832019,-500.0,0.0002972,2]
[399002663,1766053832028,-500.0,0.0002972,2]
[399002664,1766053832037,-500.0,0.0002972,2]
[399002665,1766053832045,-500.0,0.0002972,2]
[399002666,1766053832054,-113.14442834,0.0002972,2]
[399002668,1766053837840,-386.85557166,0.0002972,2]
[399002669,1766053837849,-363.14442834,0.0002972,2]
[399002670,1766053837894,-136.85557166,0.0002972,2]
[399002671,1766053837904,-500.0,0.0002972,2]
[399002672,1766053837913,-500.0,0.0002972,2]
[399002673,1766053837922,-500.0,0.0002972,2]
[399002674,1766053837931,-500.0,0.0002972,2]
[399002675,1766053837941,-500.0,0.0002972,2]
[399002676,1766053837950,-500.0,0.0002972,2]
[399002677,1766053837959,-500.0,0.0002972,2]
[399002678,1766053837968,-500.0,0.0002972,2]
[399002679,1766053837977,-475.99352975,0.0002972,2]
[399002680,1766053837992,-24.00647025,0.0002972,2]
[399002681,1766053838002,-500.0,0.0002972,2]
[399002683,1766053838010,-180.46951537,0.0002972,2]
[399002685,1766053838020,-500.0,0.0002972,2]
[399002687,1766053838029,-500.0,0.0002972,2]
[399002689,1766053838039,-192.46552366,0.0002972,2]
[399002710,1766053843264,-307.53447634,0.0002972,2]
[399002713,1766053843275,-500.0,0.0002972,2]
[399002716,1766053843284,-500.0,0.0002972,2]
[399002718,1766053843294,-500.0,0.0002972,2]
[399002721,1766053843304,-500.0,0.0002972,2]
[399002724,1766053843314,-500.0,0.0002972,2]
[399002726,1766053843323,-500.0,0.0002972,2]
[399002728,1766053843333,-500.0,0.0002972,2]
[399002731,1766053843343,-500.0,0.0002972,2]
[399002733,1766053843352,-500.0,0.0002972,2]
[399002735,1766053843362,-500.0,0.0002972,2]
[399002737,1766053843372,-500.0,0.0002972,2]
[399002739,1766053843381,-500.0,0.0002972,2]
[399002740,1766053843390,-500.0,0.0002972,2]
[399002742,1766053843400,-500.0,0.0002972,2]
[399002743,1766053843409,-500.0,0.0002972,2]
[399002744,1766053843419,-500.0,0.0002972,2]
[399002745,1766053843428,-500.0,0.0002972,2]
[399002746,1766053843438,-500.0,0.0002972,2]
[399002747,1766053843447,-500.0,0.0002972,2]
[399002748,1766053843456,-272.35672799,0.0002972,2]
[399002749,1766053843465,-500.0,0.0002972,2]
[399002750,1766053843475,-500.0,0.0002972,2]
[399002751,1766053843484,-500.0,0.0002972,2]
[399002752,1766053843493,-500.0,0.0002972,2]
[399002753,1766053843503,-500.0,0.0002972,2]
[399002754,1766053843511,-13.87719868,0.00029723,7]
[399002759,1766053846215,-137.12280132,0.00029723,7]
[399002760,1766053846225,-151.0,0.00029723,7]
[399002761,1766053846235,-151.0,0.00029723,7]
[399002762,1766053846244,-151.0,0.00029723,7]
[399002763,1766053846253,-151.0,0.00029723,7]
[399002764,1766053846263,-151.0,0.00029723,7]
[399002765,1766053846272,-151.0,0.00029723,7]
[399002766,1766053846281,-151.0,0.00029723,7]
[399002767,1766053846291,-242.350348,0.00029723,7]
[399002768,1766053846300,-365.29897415,0.00029726,7]
[399002769,1766053846312,-29.80172385,0.00029726,7]
[399002770,1766053846321,-375.28868423,0.00029726,7]
[399002771,1766053846333,-19.81201377,0.00029726,7]
[399002772,1766053846342,-395.100698,0.00029726,7]
[399002773,1766053846465,-395.100698,0.00029726,7]
[399002774,1766053846475,-395.100698,0.00029726,7]
[399002775,1766053846485,-395.100698,0.00029726,7]
[399002776,1766053846494,-395.100698,0.00029726,7]
[399002777,1766053846503,-395.100698,0.00029726,7]
[399002778,1766053846513,-3000.0,0.0002973,2]
[399002779,1766053846522,-151.0,0.0002973,7]
[399002780,1766053846531,-227.556575,0.0002973,7]
[399002781,1766053846544,-151.0,0.0002973,7]
[399002782,1766053846553,-151.0,0.0002973,7]
[399002783,1766053846563,-1964.77722307,0.0002974,2]
[399002784,1766053897559,150.0,6.909e-05,2]
[399002785,1766053897973,150.0,7.238e-05,2]
[399002786,1766053898485,150.0,7.567e-05,2]
[399002787,1766053898907,170.5,7.896e-05,2]
[399002788,1766053899855,213.12,8.225e-05,2]
[399002789,1766053900204,255.74,8.554e-05,2]
[399002790,1766053900598,298.37,8.883e-05,2]
[399002791,1766053901005,340.99,9.212e-05,2]
[399002792,1766053901411,383.62,9.541e-05,2]
[399002793,1766053901827,426.24,9.87e-05,2]
[399002794,1766053924401,1000.0,0.00015,2]
[399002795,1766053970636,150.0,7.023e-05,2]
[399002796,1766053971040,150.0,7.357e-05,2]
[399002797,1766053971439,150.0,7.691e-05,2]
[399002798,1766053972106,150.0,8.026e-05,2]
[399002799,1766053972303,150.0,8.36e-05,2]
[399002800,1766053972722,150.0,8.695e-05,2]
[399002801,1766053973127,150.0,9.029e-05,2]
[399002802,1766053973537,153.79,9.364e-05,2]
[399002803,1766053973956,173.02,9.698e-05,2]
[399002804,1766054164896,1000.0,0.00015,2]
[399002805,1766054404185,1000.0,0.000152,2]
[399002806,1766054426313,150.0,0.000152,2]
[399002807,1766054530512,150.0,0.000152,2]
[399002808,1766054644955,1000.0,0.000152,2]
[399002809,1766054884899,1000.0,0.000152,2]
[399002830,1766055031997,-154.49216669,0.00022146,5]
[399002831,1766055032007,-154.49216668,0.0002283,5]
[399002832,1766055032017,-154.49216669,0.00023536,5]
[399002833,1766055032026,-154.49216668,0.00024264,5]
[399002834,1766055032035,-4999.99999997,0.00024517,2]
[399002835,1766055032045,-196.41095905,0.00024765,2]
[399002836,1766055032054,-242.37037503,0.00024786,2]
[399002837,1766055032064,-154.49216669,0.00025016,5]
[399002838,1766055032073,-154.49216668,0.00025789,5]
[399002839,1766055032083,-702.76814218,0.00025808,2]
[399002880,1766055038150,-2543.33468453,0.00025808,2]
[399002882,1766055038166,-11495.54588914,0.00025808,2]
[399002884,1766055038176,-1200.0,0.00026586,2]
[399002886,1766055038185,-154.49216669,0.00026587,5]
[399002888,1766055038196,-300.0,0.00026846,2]
[399002890,1766055038206,-300.0,0.00026846,2]
[399002891,1766055038215,-300.0,0.00026846,2]
[399002892,1766055038224,-300.0,0.00026846,2]
[399002893,1766055038235,-500.0,0.00026847,2]
[399002894,1766055038245,-631.16327949,0.00026847,2]
[399002895,1766055038255,-500.0,0.00026847,2]
[399002897,1766055038266,-500.0,0.00026847,2]
[399002899,1766055038275,-500.0,0.00026847,2]
[399002901,1766055038285,-227.2356728,0.00026847,2]
[399002903,1766055038294,-1200.0,0.00026847,2]
[399002905,1766055038304,-47461.94860064,0.00026848,2]
[399002906,1766055038313,-299.0,0.00026848,2]
[399002907,1766055038322,-729.21200198,0.00027066,2]
[399002908,1766055038332,-237.060418,0.00027397,7]
[399002909,1766055038341,-237.060418,0.00027397,7]
[399002910,1766055038351,-154.49216668,0.00027409,5]
[399002911,1766055038361,-292.753,0.00028559,20]
[399002912,1766055038371,-1041.66666667,0.00028585,2]
[399002913,1766055038380,-424.1361,0.00028586,2]
[399002914,1766055038390,-289.741407,0.00028593,7]
[399002915,1766055038399,-2213.87212591,0.00028606,2]
[399002916,1766055038409,-2213.87212591,0.00028779,2]
[399002917,1766055038419,-213.96381185,0.00028848,2]
[399002918,1766055038429,-1680.0,0.00028882,2]
[399002919,1766055038439,-154.89831664,0.000289,2]
[399002920,1766055038449,-151.0,0.0002899,7]
[399002921,1766055038459,-151.0,0.0002899,7]
[399002922,1766055038469,-1213.08740316,0.0002899,2]
[399002923,1766055038478,-1546.36,0.0002899,10]
[399002924,1766055038487,-237.060418,0.0002899,7]
[399002925,1766055038497,-1288.64,0.0002899,10]
[399002926,1766055038507,-237.060418,0.0002899,7]
[399002927,1766055038516,-238.09700688,0.00028999,2]
[399002928,1766055038526,-47999.99999902,0.00029,15]
[399002929,1766055038535,-151.0,0.00029,7]
[399002930,1766055038545,-151.0,0.00029,7]
[399002931,1766055038554,-237.060418,0.00029,7]
[399002932,1766055038564,-237.060418,0.00029,7]
[399002933,1766055038574,-420.0,0.00029028,2]
[399002934,1766055038583,-687.0,0.00029029,2]
[399002935,1766055038592,-2213.87212591,0.00029279,2]
[399002936,1766055038602,-2213.87212591,0.00029578,2]
[399002937,1766055038612,-1035.22277693,0.0002974,2]
[399002938,1766055038622,-151.0,0.0002974,7]
[399002939,1766055038631,-3000.0,0.0002975,2]
[399002940,1766055038641,-1213.08740316,0.0002975,2]
[399002941,1766055038650,-237.060418,0.0002975,7]
[399002942,1766055038660,-3000.0,0.0002976,2]
[399002943,1766055038669,-3000.0,0.0002977,2]
[399002944,1766055038679,-151.0,0.0002977,7]
[399002945,1766055038688,-3000.0,0.0002978,2]
[399002946,1766055038697,-237.060418,0.0002978,7]